Cogmind - Beta 10.1 @@@ ROGUE MODE // 2020.09.22 @ 16:13:25 Player: 3.14 Result: Self-destructed Performance ------------- Evolutions (1) 500 Regions Visited (4) 800 Robots Destroyed (24) 120 Value Destroyed (676) 676 Prototype IDs (2) 40 Alien Tech Used (0) 0 Bonus (0) 0 TOTAL SCORE: 2136 Bonus ------- None Cogmind --------- Core Integrity 362/400 Matter 223/300 Energy 250/250 System Corruption 0% Temperature Cool (0) Movement Walking (150) Ox1 Location -9/Storage Parts ------- > --- POWER (1) -------- Ion Engine > --- PROPULSION (2) --- Aluminum Leg > --- UTILITY (4) ------ Improved Heat Sink Small Storage Unit Small Storage Unit > --- WEAPON (2) ------- Beam Cannon Assault Rifle > --- INVENTORY (8) ---- Ion Engine Light Treads Light Treads EM Pulse Gun Light Assault Rifle Peak State ------------ > --- POWER ------------ Ion Engine > --- PROPULSION ------- Aluminum Leg Aluminum Leg > --- UTILITY ---------- Improved Heat Sink Small Storage Unit Small Storage Unit > --- WEAPON ----------- Beam Cannon Assault Rifle > --- INVENTORY -------- Ion Engine Light Treads EM Pulse Gun Light Assault Rifle [Rating: 10] Favorites ----------- Power Ion Engine Engine Ion Engine Propulsion Light Treads Treads Light Treads Leg Aluminum Leg Utility Small Storage Unit Device Improved Heat Sink Storage Small Storage Unit Weapon Assault Rifle Energy Gun EM Pulse Gun Energy Cannon Beam Cannon Ballistic Gun Assault Rifle Build | -11 -10 -10 -9 -9 ------- Run | Scr Mat Min Mat Sto Slots Evolved 2 | . . . 2 . Power . | . . . . . Propulsion . | . . . . . Utility 2 | . . . 2 . Weapon . | . . . . . Parts Attached 18 | 7 6 2 . 3 Power 2 | 1 1 . . . Engine 2 | 1 1 . . . Core . | . . . . . Reactor . | . . . . . Propulsion 4 | 2 . 2 . . Treads 2 | 2 . . . . Leg 2 | . . 2 . . Wheel . | . . . . . Hover . | . . . . . Flight . | . . . . . Utility 3 | 2 . . . 1 Device 1 | . . . . 1 Storage 2 | 2 . . . . Processor . | . . . . . Hackware . | . . . . . Protection . | . . . . . Artifact . | . . . . . Weapon 9 | 2 5 . . 2 Energy Gun 1 | 1 . . . . Energy Cannon 1 | . . . . 1 Ballistic Gun 7 | 1 5 . . 1 Ballistic Cannon . | . . . . . Launcher . | . . . . . Special Weapon . | . . . . . Impact Weapon . | . . . . . Slashing Weapon . | . . . . . Piercing Weapon . | . . . . . Special Melee Weapon . | . . . . . Unidentified Prototypes . | . . . . . Parts Lost 3 | . 1 1 . 1 Power . | . . . . . Propulsion 2 | . . 1 . 1 Utility . | . . . . . Weapon 1 | . 1 . . . Highest Loss Streak 1 | . 1 1 . 1 Average Slot Usage (%) 98 | . 99 98 77 78 Engine 13 | . 14 14 11 11 Treads 24 | . 28 7 . . Leg 2 | . . 18 22 20 Storage 27 | . 28 28 22 22 Ballistic Gun 26 | . 27 28 22 19 Naked Turns . | . . . . . Heaviest Build 19 | 15 17 16 16 19 Greatest Support 40 | 40 40 20 20 20 Greatest Overweight (x) . | . . . . . Average Overweight (x) . | . . . . . Largest Inventory Capacity 8 | 8 8 8 8 8 Average Capacity 7 | 6 8 8 8 8 Most Carried 8 | 4 8 8 7 7 Average Carried 7 | 2 7 7 7 6 Final Capacity 8 | 8 8 8 8 8 Final Carried 8 | 4 8 7 7 5 Class Distribution -------------------- 100% | Mutant Dominant Class ---------------- Mutant | -10/Materials Mutant | -10/Mines Mutant | -9/Materials Mutant | -9/Storage Resources | -11 -10 -10 -9 -9 ----------- Run | Scr Mat Min Mat Sto Matter Collected 705 | 235 379 38 . 53 Remotely . | . . . . . Salvage Created 1035 | 61 734 38 . 202 Parts 63 | 4 40 2 . 17 Haulers Intercepted 2 | . 2 . . . Recyclers Shooed 2 | . 2 . . . Parts Field Recycled . | . . . . . Retrieved Matter . | . . . . . Parts Self-Destructed . | . . . . . Prevented . | . . . . . Kills | -11 -10 -10 -9 -9 ------- Run | Scr Mat Min Mat Sto Combat Hostiles Destroyed 19 | . 12 3 . 4 Guns 19 | . 12 3 . 4 Classes Destroyed 6 | 1 3 1 . 1 Worker 1 | . 1 . . . Hauler 2 | . 2 . . . Recycler 2 | 1 1 . . . Swarmer 3 | . . 3 . . Grunt 13 | . 12 . . 1 Sentry 3 | . . . . 3 Best Kill Streak 6 | 1 6 3 . 3 Combat Bots Only 6 | . 6 3 . 3 Max Kills in Single Turn 2 | 1 1 2 . 1 Gunslinging 1 | . . 1 . . Exploded . | . . . . . Melee . | . . . . . Uniques/NPCs Destroyed . | . . . . . Combat | -11 -10 -10 -9 -9 -------- Run | Scr Mat Min Mat Sto Damage Taken 1115 | . 591 164 . 360 Core 170 | . 108 24 . 38 Absorbed by Shields . | . . . . . Core Remaining (%) 73 | 100 . 47 . . Volleys Fired 91 | 3 55 11 . 22 Largest 2 | 2 2 2 . 2 Hottest 80 | 60 40 40 . 80 Shots Fired 181 | 6 110 22 . 43 Gun 178 | 6 110 22 . 40 Cannon 3 | . . . . 3 Launcher . | . . . . . Special . | . . . . . Kinetic 175 | 3 110 22 . 40 Thermal 3 | . . . . 3 Explosive . | . . . . . Electromagnetic 3 | 3 . . . . Robot Hit Streak 14 | 3 13 2 . 14 Robot Miss Streak 4 | 1 2 4 . 4 Penetration Max . | . . . . . Secondary Targets 4 | . 2 1 . 1 Max Gunslinging Chain 1 | . 1 1 . 1 Shots Hit Robots 131 | 4 85 7 . 35 Core Hits 51 | 3 33 3 . 12 Critical Hits 1 | . 1 . . . Critical Kills . | . . . . . Critical Parts Destroyed 1 | . 1 . . . Melee Attacks . | . . . . . Impact . | . . . . . Slashing . | . . . . . Piercing . | . . . . . Sneak Attacks . | . . . . . Combat Hostiles . | . . . . . Follow-up Attacks . | . . . . . Damage Inflicted 1527 | 52 1012 68 . 395 Guns 1442 | 46 986 68 . 342 Cannons 53 | . . . . 53 Explosions . | . . . . . Melee . | . . . . . Ramming 32 | 6 26 . . . Kinetic 1430 | 34 986 68 . 342 Thermal 53 | . . . . 53 Explosive . | . . . . . Electromagnetic 12 | 12 . . . . Impact . | . . . . . Slashing . | . . . . . Piercing . | . . . . . Highest Corruption . | . . . . . Average Corruption . | . . . . . Corruption Purged . | . . . . . Overload Shots . | . . . . . Overflow Damage . | . . . . . Projectiles . | . . . . . Explosions . | . . . . . Melee . | . . . . . Knockbacks 1 | 1 . . . . Impact 1 | 1 . . . . Kinetic . | . . . . . Secondary . | . . . . . Self-Inflicted Damage . | . . . . . Shots . | . . . . . Rammed 10 | 1 9 . . . Targets Rammed 11 | 1 10 . . . Kicked . | . . . . . Crushed 1 | . 1 . . . Highest Temperature 15 | . 15 . . 6 Average Temperature 4 | . 4 . . 4 Received Heat Transfer 411 | . 318 . . 93 Siege Activations . | . . . . . Robots Corrupted . | . . . . . Combat Hostiles . | . . . . . Parts Fried . | . . . . . Impact Corruptions . | . . . . . Robots Melted . | . . . . . Combat Hostiles . | . . . . . Parts Melted . | . . . . . Heat Transferred 111 | . . . . 111 Parts Sabotaged . | . . . . . Parts Stolen . | . . . . . Parts Stripped . | . . . . . Power Chain Reactions . | . . . . . Missiles Intercepted . | . . . . . Alert | -11 -10 -10 -9 -9 ------- Run | Scr Mat Min Mat Sto Peak Influence 248 | 5 248 71 27 151 Initial 27 | . 3 11 27 11 Average 63 | 2 66 59 27 96 Maximum Alert Level 1 | . 1 . . . Low Security (%) 93 | 100 92 100 100 100 Level 1 6 | . 7 . . . Level 2 . | . . . . . Level 3 . | . . . . . Level 4 . | . . . . . Level 5 . | . . . . . High Security . | . . . . . Max Security . | . . . . . Squads Dispatched 4 | . 2 . . 2 Investigation 1 | . . . . 1 Extermination . | . . . . . Reinforcement 3 | . 2 . . 1 Assault . | . . . . . Garrison . | . . . . . Intercept . | . . . . . Construction Impeded . | . . . . . Haulers Reinforced . | . . . . . Stealth | -11 -10 -10 -9 -9 --------- Run | Scr Mat Min Mat Sto Distress Signals 6 | . 4 . . 2 Communications Jammed . | . . . . . Distress Signals . | . . . . . Times Spotted 44 | . 32 3 . 9 Peak Tracking Total 8 | . 8 3 . 4 Tactical Retreats 1 | . 1 . . . Traps | -11 -10 -10 -9 -9 ------- Run | Scr Mat Min Mat Sto Traps Triggered 1 | . 1 . . . Indirectly . | . . . . . Trap Hack Attempts . | . . . . . Triggered . | . . . . . Disarmed . | . . . . . Reprogrammed . | . . . . . Reused . | . . . . . Traps Extracted . | . . . . . Installed . | . . . . . Triggered . | . . . . . Machines | -11 -10 -10 -9 -9 ---------- Run | Scr Mat Min Mat Sto Machines Disabled . | . . . . . Max in Single Turn . | . . . . . Machines Sabotaged . | . . . . . Garrisons Compromised . | . . . . . Overloaded Fab Kills . | . . . . . Fab Network Shutdowns . | . . . . . Hacking | -11 -10 -10 -9 -9 --------- Run | Scr Mat Min Mat Sto Machines Accessed 5 | . 4 . . 1 Terminals 4 | . 3 . . 1 Fabricators . | . . . . . Repair Stations . | . . . . . Recycling Units 1 | . 1 . . . Scanalyzers . | . . . . . Garrison Access . | . . . . . Total Hacks 13 | . 10 . . 3 Successful 5 | . 3 . . 2 Failed 8 | . 7 . . 1 Catastrophic 1 | . 1 . . . Database Lockouts . | . . . . . Manual 10 | . 8 . . 2 Terminals 12 | . 9 . . 3 Fabricators . | . . . . . Repair Stations . | . . . . . Recycling Units 1 | . 1 . . . Scanalyzers . | . . . . . Garrison Access . | . . . . . Terminal Hacks 3 | . 2 . . 1 Prototype ID Bank 1 | . 1 . . . Open Door 1 | . . . . 1 Zone Layout 1 | . 1 . . . Fabricator Hacks . | . . . . . Repair Station Hacks . | . . . . . Recycling Unit Hacks 1 | . 1 . . . Retrieve Components 1 | . 1 . . . Scanalyzer . | . . . . . Garrison Access Hacks . | . . . . . Unauthorized Hacks 1 | . . . . 1 Terminals 1 | . . . . 1 Botnet 1 | . . . . 1 Fabricators . | . . . . . Repair Stations . | . . . . . Recycling Units . | . . . . . Scanalyzers . | . . . . . Garrison Access . | . . . . . Data Cores Recovered . | . . . . . Used . | . . . . . Hacking Detections 4 | . 3 . . 1 Full Trace Events 1 | . . . . 1 Feedback Events . | . . . . . Feedback Blocked . | . . . . . Robot Schematics Acquired . | . . . . . Robots Built . | . . . . . Matter . | . . . . . Time . | . . . . . Total Robot Build Rating . | . . . . . Part Schematics Acquired . | . . . . . Parts Built . | . . . . . Matter . | . . . . . Time . | . . . . . Total Part Build Rating . | . . . . . Parts Repaired . | . . . . . Time . | . . . . . Parts Recycled . | . . . . . Recycled Matter . | . . . . . Retrieved Matter . | . . . . . Retrieved Components 9 | . 9 . . . Parts Scanalyzed . | . . . . . Part Schematics Acquired . | . . . . . Parts Damaged . | . . . . . Bothacking | -11 -10 -10 -9 -9 ------------ Run | Scr Mat Min Mat Sto Used RIF Installer . | . . . . . Robots Hacked . | . . . . . Non-combat . | . . . . . Combat . | . . . . . Robot Hacks Applied . | . . . . . Relay Couplers Released . | . . . . . Robots Rewired . | . . . . . Allies Hacked . | . . . . . Hacks Repelled . | . . . . . Allies | -11 -10 -10 -9 -9 -------- Run | Scr Mat Min Mat Sto Total Allies . | . . . . . Largest Group . | . . . . . Highest-Rated Group . | . . . . . Highest-Rated Ally . | . . . . . Total Orders . | . . . . . Ally Attacks . | . . . . . Total Damage . | . . . . . Kills . | . . . . . Allies Corrupted . | . . . . . Allies Melted . | . . . . . Intel | -11 -10 -10 -9 -9 ------- Run | Scr Mat Min Mat Sto Robot Analysis Total . | . . . . . Derelict Logs Recovered . | . . . . . Drone Launches . | . . . . . Drone Recoveries . | . . . . . Exploration | -11 -10 -10 -9 -9 ------------- Run | Scr Mat Min Mat Sto Turns Passed 1615 | 110 1316 87 9 93 Spaces Moved 818 | 56 687 45 8 22 Core 3 | 3 . . . . Treads 740 | 53 687 . . . Legs 75 | . . 45 8 22 Wheels . | . . . . . Hover . | . . . . . Flight . | . . . . . Fastest Speed 50 | 50 160 120 120 120 Average Speed 155 | 154 160 120 120 120 Slowest Speed 160 | 160 160 120 120 120 Overloaded Moves . | . . . . . Propulsion Burnouts . | . . . . . Robots Hopped . | . . . . . Cave-ins Triggered . | . . . . . Exploration Rate (%) 24 | 5 93 17 2 7 Regions Visited 4 Branch Regions 2 Pre-discovered Areas . | . . . . . Known Exits Taken . | . . . . . Unknown Exits Taken 4 | 1 1 1 1 . Scrap Searched . | . . . . . Spaces Dug . | . . . . . Terrain Destroyed . | . . . . . Melee . | . . . . . Projectile . | . . . . . AOE . | . . . . . Terrain Rammed . | . . . . . Walls Destroyed . | . . . . . Machines Disabled . | . . . . . Actions | -11 -10 -10 -9 -9 --------- Run | Scr Mat Min Mat Sto Total 984 | 70 800 57 7 50 Wait 18 | . 18 . . . Move 815 | 56 686 44 7 22 Hop . | . . . . . Pick Up 18 | 4 13 . . 1 Fast Attach 7 | 7 . . . . Attach 5 | . 1 1 . 3 Detach . | . . . . . Swap 6 | . 5 1 . . Drop 14 | . 12 . . 2 Fire 91 | 3 55 11 . 22 Melee . | . . . . . Ram . | . . . . . Kick . | . . . . . Crush 10 | . 10 . . . Escape Stasis . | . . . . . Rewire . | . . . . . Trap . | . . . . . Miscellaneous . | . . . . . Route ------- -11/Scrapyard -10/Materials (discovered 3 exits: [*Mat x2] / [*Min]) -10/Mines -9/Materials -9/Storage History --------- Turn | Location | Event 6 | -11/Scrapyard | Discovered new exit (range 15) 111 | -11/Scrapyard | Entered Materials 222 | -10/Materials | Discovered new exit (range 13) 308 | -10/Materials | Build established: Mutant 662 | -10/Materials | Discovered new exit (range 8) 994 | -10/Materials | Discovered new exit (range 13) 1427 | -10/Materials | Entered Mines 1455 | -10/Mines | Core integrity fell below 50% 1499 | -10/Mines | Discovered new exit (range 12) 1514 | -10/Mines | Entered Materials 1514 | -9/Materials | Evolved 2 slots: Utility x2 1514 | -9/Materials | Discovered new exit (range 7) 1523 | -9/Materials | Entered Storage 1616 | -9/Storage | Self-destructed Last Messages --------------- 01544_ Y-45 Defender destroyed. 01544_ Switching to secondary target: Y-45 Defender. 01550_ Y-45 Defender destroyed. 01559_ ALERT: Hostiles spotted, dispatching reinforcements to Terminal S011. 01565_ K-01 Serf collects debris. 01567_ Y-45 Defender destroyed. 01573_ K-01 Serf collects debris. 01574_ U-05 Engineer lays Concrete. 01577_ K-01 Serf collects debris. 01591_ U-05 Engineer lays Concrete. 01591_ G-34 Mercenary destroyed. 01594_ Dropped Lgt. Assault Rifle. 01595_ Dropped Assault Rifle. 01602_ Acquired Lgt. Treads. 01603_ Acquired 53 matter. 01605_ W-16 Scout sends out distress signal. 01607_ Aluminum Leg destroyed. 01612_ U-05 Engineer lays Concrete. 01613_ U-05 Engineer destroyed. Map ----- +----------------------------------------------------+ | ?????????????????????????????????????????????????? | | ?????????????????????????????????????????????????? | | ?????????????????????????????????????????????????? | | ?????????????????????????????????????????????????? | | ?????????????????????????????????????????????????? | | ?????????????????????????????????????????????????? | | ?????????????????????????????????????????????????? | | ?????????????????????????????????????????????????? | | ?????????????????????????????????????????????????? | | ?????????????????????????????????????????????????? | | ?????????????????????????????????????????????????? | | ?????????????????????# ??????????????????????????? | | ?????????????????????# ?????????????????????????? | | ?????????????????????#w ?????????????????????????? | | ??????????????????? ?# ?????????????????????????? | | ???????????????????? # ?????????????????????????? | | ???????????????????? # ?????????????????????????? | | ?????????????????????+ ????????????????????????? | | ?????????????????????#w ????????????????????????? | | ?????????????????????# ????????????????????????? | | ?????????????????????#o ????????????????????????? | | ?????????????????????# s????????????????????????? | | ????????????????????## ##??????????????????????? | | ????????????#########! a#####################??? | | ?????????? =%*=%*!* u=% u #??? | | ??????????Y = =%@[*! #??? | | ?????????? ![ [[[ #??? | | ?????????????######## =!#####+#########+#####??? | | ????????????????????###+###??? ??????#T #??????? | | ??????????????????????????????" "??????## #??????? | | ??????????????????????????????!!!???????#=#??????? | | ??????????????????????????????!!!???????###??????? | | ??????????????????????????????###????????????????? | | ?????????????????????????????????????????????????? | | ?????????????????????????????????????????????????? | | ?????????????????????????????????????????????????? | | | | | | | | | | | | | | | | | | | | | | | | | | | | | +----------------------------------------------------+ Best States ------------- Heat Dissipation 42 Energy Generation 10 Energy Capacity 250 Matter Stores 300 Matter Capacity 300 Sight Range 16 Terrain Scan Density 10 Evasion (%) 40 Recoil Reduction 2 Item Schematics ----------------- None Robot Schematics ------------------ None Fabricated ------------ Nothing Alien Tech Used ----------------- None Achievements -------------- None Challenges ------------ None Game ------ Seed TiamatChipScreen Manual? 0 Play Time 00:08:15 Cumulative 603.7 hours Start 2020.09.22 @ 16:05:15 End 2020.09.22 @ 16:13:25 Sessions 1 Manual Loads 0 Difficulty Rogue Special Mode None Game No. 934 Rogue 934 Adventurer 0 Explorer 0 Win Type - Total 57 Types 37/1/7/9/3/0/0/0/0 Lore% 93 Gallery% 94 Achievement% 82 Wizard Run 0 Options --------- ASCII 1 Keyboard 0 Movement Numpad Keybinds 0 Fullscreen 0 Font 14/SmallcapsGlow Map View 76x50 Tactical HUD 1 Map Filters NONE Filters NONE Steam 1 RUN: d50fe3fb-be00-474f-a992-a4391d3ee4d6